bitfinex-derivatives/quotes_SOLF0:USTF0_20260304
["timestamp","ask_amount","ask_price","bid_price","bid_amount"]
[1772628327128,2.14748131,89.14,89.081,11.48897662]
[1772628327536,13.50035133,89.13,89.081,11.48897662]
[1772628328433,2.14748131,89.12,89.081,11.48897662]
[1772628329730,2.14748131,89.11,89.081,11.48897662]
[1772628331441,2.14748131,89.13,89.081,11.48897662]
[1772628332539,2.14748131,89.12,89.09,10.101]
[1772628333445,2.14748131,89.13,89.09,21.58997662]
[1772628334742,2.14748131,89.12,89.09,21.58997662]
[1772628334943,2.14748131,89.13,89.09,11.48897662]
[1772628335144,2.14748131,89.12,89.09,11.48897662]
[1772628335846,2.14748131,89.1,89.064,11.48897662]
[1772628336047,2.14748131,89.11,89.064,11.48897662]
[1772628337147,11.35287002,89.106,89.05,11.48897662]
[1772628337350,11.35287002,89.106,89.05,13.63645793]
[1772628337747,11.35287002,89.106,89.064,10.104]
[1772628338650,11.35287002,89.106,89.056,11.48897662]
[1772628339746,10.1,89.105,89.057,10.105]
[1772628340051,10.1,89.105,89.058,11.48897662]
[1772628341345,10.1,89.105,89.061,21.59397662]
[1772628341546,79.0,89.13,89.029,20.217]
[1772628341547,11.35287002,89.12,89.062,11.48897662]
[1772628342545,10.098,89.119,89.072,11.48897662]
[1772628345058,10.098,89.119,89.075,11.48897662]
[1772628345253,10.097,89.129,89.081,11.48897662]
[1772628345849,20.184,89.175,89.048,20.213]
[1772628345850,10.096,89.136,89.095,11.48897662]
[1772628347455,10.096,89.136,89.096,10.101]
[1772628348654,11.83393289,89.173,89.107,11.06588641]
[1772628348953,13.9814142,89.16,89.107,11.06588641]
[1772628349861,11.83393289,89.149,89.107,11.06588641]
[1772628350259,10.096,89.14,89.093,11.06588641]
[1772628350450,12.24348131,89.14,89.093,11.06588641]
[1772628350652,10.096,89.14,89.093,11.06588641]
[1772628351357,10.096,89.14,89.094,10.101]
[1772628351557,10.096,89.14,89.094,21.16688641]
[1772628351762,10.096,89.14,89.095,11.06588641]
[1772628352055,11.83393289,89.133,89.088,10.101]
[1772628352262,2.14748131,89.13,89.089,11.06588641]
[1772628352864,10.098,89.119,89.089,11.06588641]
[1772628353262,2.14748131,89.13,89.089,11.06588641]
[1772628353565,11.83393289,89.133,89.089,11.06588641]
[1772628353862,2.14748131,89.13,89.089,11.06588641]
[1772628354461,10.097,89.126,89.089,11.06588641]
[1772628355168,13.9814142,89.13,89.089,11.06588641]
[1772628355766,10.098,89.12,89.071,11.06588641]
[1772628355971,11.83393289,89.119,89.071,11.06588641]
[1772628356272,10.097,89.126,89.071,11.06588641]
[1772628357173,2.14748131,89.13,89.028,20.217]
[1772628357174,10.098,89.119,89.08,21.16788641]
[1772628357571,10.099,89.112,89.062,21.16988641]
[1772628357873,11.83393289,89.111,89.063,11.06588641]
[1772628358768,11.83393289,89.125,89.071,11.06588641]
[1772628359070,79.0,89.129,89.071,11.06588641]
[1772628359677,79.0,89.129,89.085,11.06588641]
[1772628359975,89.096,89.136,89.085,11.06588641]
[1772628361372,89.096,89.136,89.09,21.16688641]
[1772628361569,89.096,89.136,89.091,11.06588641]
[1772628362465,89.096,89.136,89.093,10.101]
[1772628362669,89.096,89.136,89.094,11.06588641]
[1772628363071,79.0,89.136,89.098,10.1]
[1772628364371,79.0,89.136,89.04,13.84842706]
[1772628364372,13.9814142,89.12,89.073,11.06588641]
[1772628364973,11.83393289,89.12,89.081,21.16788641]
[1772628365173,2.14748131,89.13,89.082,11.06588641]
[1772628365576,13.9814142,89.13,89.082,11.06588641]
[1772628365876,10.098,89.123,89.084,10.102]
[1772628366870,11.83393289,89.122,89.082,11.06588641]
[1772628368569,13.9814142,89.12,89.067,11.06588641]
[1772628368771,11.83393289,89.109,89.067,11.06588641]
[1772628369277,11.83393289,89.109,89.068,10.104]
[1772628371676,21.93293289,89.109,89.068,10.104]
[1772628371978,2.14748131,89.09,89.037,11.06588641]
[1772628372180,13.9814142,89.09,89.037,11.06588641]
[1772628372481,11.83393289,89.106,89.041,11.06588641]
[1772628372675,11.83393289,89.106,89.002,20.223]
[1772628372676,11.83393289,89.106,89.051,11.06588641]
[1772628372876,11.83393289,89.106,89.062,10.104]
[1772628373371,11.83393289,89.106,89.062,21.16988641]
[1772628374076,10.098,89.116,89.067,11.06588641]
[1772628374671,10.099,89.109,89.067,11.06588641]
[1772628377782,21.93293289,89.109,89.067,11.06588641]
[1772628378283,21.93293289,89.109,89.068,10.104]
[1772628378779,10.1,89.106,89.06,10.105]
[1772628378986,14.34831902,89.1,89.06,10.105]
[1772628379480,12.20083771,89.1,89.06,10.105]
[1772628380684,12.20083771,89.089,89.053,10.105]
[1772628381785,10.101,89.097,89.055,10.105]
[1772628381984,10.101,89.097,89.056,12.23229799]
[1772628382385,12.20083771,89.102,89.056,12.23229799]
[1772628383090,12.20083771,89.102,89.059,10.105]
[1772628383583,2.1513011,89.09,89.051,10.106]
[1772628383789,14.04567501,89.09,89.051,10.106]
[1772628385990,10.102,89.089,89.051,10.106]
[1772628386390,21.99637391,89.089,89.051,10.106]
[1772628386891,11.89437391,89.088,89.051,10.106]
[1772628387187,11.89437391,89.088,89.044,10.107]
[1772628388393,10.102,89.087,89.044,10.107]
[1772628390195,11.89437391,89.086,89.044,10.107]
[1772628391092,11.89437391,89.1,89.051,11.74375123]
[1772628391297,14.04567501,89.1,89.051,11.74375123]
[1772628392301,11.89437391,89.097,89.051,11.74375123]
[1772628392602,14.04567501,89.09,89.031,11.74375123]
[1772628393299,14.04567501,89.09,89.049,10.106]
[1772628394501,14.04567501,89.08,89.042,10.107]
[1772628398399,12.2523011,89.09,89.047,21.84975123]
[1772628399295,10.101,89.09,89.047,21.84975123]
[1772628399499,11.89437391,89.093,89.052,11.74375123]
[1772628400604,10.101,89.091,89.052,11.74375123]
[1772628400803,14.04567501,89.09,89.052,11.74375123]
[1772628401006,14.04567501,89.09,89.043,10.107]
[1772628401207,14.04567501,89.09,89.043,21.85075123]
[1772628401502,11.89437391,89.079,89.036,10.107]
[1772628403907,2.1513011,89.06,89.014,11.74375123]
[1772628404203,14.04567501,89.06,89.014,11.74375123]
[1772628404406,11.89437391,89.058,89.015,10.11]
[1772628405411,10.106,89.053,89.015,10.11]
[1772628405714,11.89437391,89.058,89.018,11.74375123]
[1772628408415,11.89437391,89.058,89.019,10.109]
[1772628409710,10.105,89.056,89.018,11.74375123]
[1772628409913,11.54640644,89.055,89.011,10.11]
[1772628411506,10.105,89.054,89.011,10.11]
[1772628411811,11.54640644,89.049,88.993,12.22694714]
[1772628412010,11.54640644,89.039,88.962,12.22694714]
[1772628412217,13.69770754,89.03,88.971,12.22694714]
[1772628412407,2.1513011,89.02,88.971,12.22694714]
[1772628412713,13.69770754,89.02,88.971,12.22694714]
[1772628413114,2.1513011,89.01,88.971,22.34194714]
[1772628413311,11.54640644,89.009,88.971,10.115]
[1772628413707,11.54640644,89.009,88.964,10.116]
[1772628413908,11.54640644,89.066,89.001,12.22694714]
[1772628414110,13.69770754,89.04,88.981,12.22694714]
[1772628414406,11.54640644,89.04,88.99,2.1513011]
[1772628414712,11.54640644,89.04,88.99,14.37824824]
[1772628415209,13.69770754,89.04,88.945,12.22694714]
[1772628415415,11.54640644,89.019,88.951,12.22694714]
[1772628415613,11.54640644,89.019,88.968,10.115]
[1772628415912,2.1513011,89.03,88.971,12.22694714]
[1772628416212,11.54640644,89.034,88.971,12.22694714]
[1772628417513,11.54640644,89.034,88.984,10.113]
[1772628417815,2.1513011,89.03,88.984,10.113]
[1772628419113,11.54640644,89.034,88.984,10.113]
[1772628421418,2.1513011,89.03,88.984,10.113]
[1772628422514,11.54640644,89.034,88.985,12.22694714]
[1772628424315,2.1513011,89.03,88.985,12.22694714]
[1772628424612,2.1513011,89.03,88.986,10.113]
[1772628426815,2.1513011,89.03,88.986,22.33994714]
[1772628427418,10.108,89.033,88.986,22.33994714]
[1772628427609,10.108,89.033,88.989,10.113]
[1772628427814,10.107,89.04,88.99,12.22694714]
[1772628428017,11.54640644,89.047,88.99,12.22694714]
[1772628428818,10.106,89.045,89.001,10.111]
[1772628429722,10.107,89.039,88.993,10.112]
[1772628429918,10.107,89.039,88.994,12.22694714]
[1772628431117,10.108,89.032,88.994,12.22694714]
[1772628431318,13.69770754,89.03,88.971,12.22694714]
[1772628431627,11.54640644,89.03,88.971,12.22694714]
[1772628432421,11.54640644,89.03,88.97,2.1513011]
[1772628432422,10.108,89.028,88.99,10.113]
[1772628432819,11.54640644,89.044,88.99,14.37824824]
[1772628433220,11.54640644,89.044,88.99,12.22694714]
[1772628434517,10.107,89.042,89.004,22.33794714]
[1772628434722,11.54640644,89.059,89.005,12.22694714]
[1772628436329,10.106,89.054,89.015,12.22694714]
[1772628436623,10.106,89.054,88.946,178.2905193]
[1772628436624,11.54640644,89.091,89.041,12.22694714]
[1772628437424,2.1513011,89.1,89.041,12.22694714]
[1772628437625,11.54640644,89.105,89.041,12.22694714]
[1772628437826,2.1513011,89.1,89.041,12.22694714]
[1772628438027,11.54640644,89.105,89.052,12.22694714]
[1772628439428,11.54640644,89.105,89.065,10.104]
[1772628440832,13.0082362,89.145,89.085,12.61452802]
[1772628441034,13.0082362,89.159,89.101,12.61452802]
[1772628441332,15.15900031,89.15,89.08,2.15076411]
[1772628441526,15.15900031,89.15,89.081,12.61452802]
[1772628441725,15.15900031,89.14,89.081,12.61452802]
[1772628442831,2.15076411,89.13,89.081,12.61452802]
[1772628443538,15.15900031,89.14,89.081,12.61452802]
[1772628443936,12.48169272,89.129,89.061,11.83883186]
[1772628444130,12.48169272,89.119,89.061,11.83883186]
[1772628444330,2.15076411,89.1,89.045,11.83883186]
[1772628444533,22.14024011,89.16,89.071,11.83883186]
[1772628444534,2.15076411,89.13,89.071,11.83883186]
[1772628444733,12.48169272,89.129,89.071,11.83883186]
[1772628444939,2.15076411,89.12,89.071,11.83883186]
[1772628445644,2.15076411,89.12,89.081,10.102]
[1772628446038,2.15076411,89.12,89.071,11.83883186]
[1772628446344,2.15076411,89.12,89.08,10.102]
[1772628447043,2.15076411,89.12,89.071,11.83883186]
[1772628448341,12.48169272,89.099,89.054,11.83883186]
[1772628448541,12.48169272,89.158,89.054,11.83883186]
[1772628448739,2.15076411,89.12,89.061,11.83883186]
[1772628449041,79.0,89.157,89.061,11.83883186]
[1772628449042,14.63245683,89.11,89.061,11.83883186]
[1772628449435,14.63245683,89.1,89.041,11.83883186]
[1772628449843,2.15076411,89.09,89.045,10.106]
[1772628450140,2.15076411,89.08,89.025,11.83883186]
[1772628450342,2.15076411,89.07,89.025,11.83883186]
[1772628451038,2.15076411,89.06,89.001,11.83883186]
[1772628451633,10.26179918,89.119,89.001,11.83883186]
[1772628451634,2.15076411,89.05,89.014,10.11]
[1772628452438,2.15076411,89.06,89.014,10.11]
[1772628452638,2.15076411,89.05,89.014,10.11]
[1772628452836,20.196,89.123,89.029,11.83883186]
[1772628452837,12.48169272,89.114,89.029,11.83883186]
[1772628453039,2.15076411,89.08,89.029,11.83883186]
[1772628454439,2.15076411,89.08,89.037,10.107]
[1772628454841,2.15076411,89.07,89.029,11.83883186]
[1772628455948,14.63245683,89.08,89.029,11.83883186]
[1772628456145,12.48169272,89.121,89.029,11.83883186]
[1772628456352,2.15076411,89.1,89.041,11.83883186]
[1772628456540,12.48169272,89.109,89.041,11.83883186]
[1772628457243,10.1,89.105,89.056,10.105]
[1772628457449,12.48169272,89.109,89.041,11.83883186]
[1772628458050,12.48169272,89.109,89.061,10.105]
[1772628460149,10.22276589,89.164,88.998,157.3]
[1772628460150,10.098,89.124,89.081,10.102]
[1772628460946,10.098,89.124,89.078,11.83883186]
[1772628461752,10.098,89.124,89.079,10.102]
[1772628462354,12.48169272,89.126,89.079,10.102]
[1772628463848,12.48169272,89.126,89.078,11.83883186]
[1772628465559,12.48169272,89.126,89.079,10.103]
[1772628467353,22.57869272,89.126,89.079,10.103]
[1772628467862,12.48169272,89.122,89.071,10.103]
[1772628468563,12.23423934,89.111,89.048,12.85714043]
[1772628469753,12.23423934,89.1,89.048,12.85714043]
[1772628469955,12.23423934,89.1,89.011,12.85714043]
[1772628470663,12.23423934,89.113,89.043,12.85714043]
[1772628471152,79.0,89.12,89.071,12.85714043]
[1772628471361,10.098,89.122,89.071,12.85714043]
[1772628471862,12.23423934,89.128,89.085,10.102]
[1772628473560,10.097,89.126,89.085,10.102]
[1772628474157,79.0,89.13,89.091,10.101]
[1772628474358,89.096,89.133,89.085,12.85714043]
[1772628474559,101.33023934,89.133,89.086,10.102]
[1772628474956,12.23423934,89.109,89.041,12.85714043]
[1772628475152,12.23423934,89.109,89.049,10.106]
[1772628475361,12.23423934,89.13,89.041,12.85714043]
[1772628475556,12.23423934,89.12,89.071,10.103]
[1772628475758,12.23423934,89.12,89.058,12.85714043]
[1772628476554,12.23423934,89.101,89.018,12.85714043]
[1772628476957,12.23423934,89.099,89.018,12.85714043]
[1772628477354,12.23423934,89.115,89.048,12.85714043]
[1772628479158,12.23423934,89.136,89.068,12.85714043]
[1772628479359,12.23423934,89.149,89.068,12.85714043]
[1772628479757,12.23423934,89.149,89.097,10.101]
[1772628479961,12.23423934,89.149,89.083,12.85714043]
[1772628480963,12.23423934,89.139,89.088,10.101]
[1772628481854,12.23423934,89.139,89.069,12.85714043]
[1772628482057,5.37864979,89.13,89.044,10.38524459]
[1772628482258,12.23423934,89.129,89.045,12.85714043]
[1772628482658,12.23423934,89.111,89.064,10.104]
[1772628484864,10.098,89.12,89.071,10.103]
[1772628485061,10.098,89.12,89.026,13.84842706]
[1772628485062,12.23423934,89.15,89.072,12.85714043]
[1772628485469,10.096,89.14,89.072,12.85714043]
[1772628485965,10.096,89.14,89.093,10.101]
[1772628487565,10.095,89.148,89.1,10.1]
[1772628487860,12.23423934,89.15,89.086,12.85714043]
[1772628488468,10.096,89.134,89.087,10.102]
[1772628489260,10.096,89.134,89.049,13.84842706]
[1772628489261,12.23423934,89.131,89.075,10.103]
[1772628490568,10.098,89.122,89.075,10.103]
[1772628491172,12.23423934,89.147,89.07,12.85714043]
[1772628491966,10.096,89.137,89.087,12.85714043]
[1772628492870,22.33023934,89.137,89.087,12.85714043]
[1772628493570,22.33023934,89.137,89.087,22.95914043]
[1772628493767,12.23423934,89.136,89.087,12.85714043]
[1772628493966,12.23423934,89.136,89.052,12.85714043]
[1772628494176,12.23423934,89.139,89.059,12.85714043]
[1772628494373,5.37864979,89.14,89.059,12.85714043]
[1772628494374,12.23423934,89.126,89.059,12.85714043]
[1772628494770,12.23423934,89.126,89.077,10.103]
[1772628494972,10.098,89.117,89.059,12.85714043]
[1772628495173,79.0,89.125,89.059,12.85714043]
[1772628495378,79.0,89.125,89.083,10.102]
[1772628495574,91.23423934,89.126,89.083,10.102]
[1772628495776,79.0,89.126,89.083,10.102]
[1772628496078,12.23423934,89.125,89.083,10.102]
[1772628496271,12.23423934,89.122,89.076,10.103]
[1772628496473,12.23423934,89.122,89.059,12.85714043]
[1772628496878,10.098,89.118,89.077,10.103]
[1772628497983,22.33323934,89.11,89.059,12.85714043]
[1772628498179,12.23423934,89.109,89.059,12.85714043]
[1772628498677,12.62647049,89.138,89.059,12.85714043]
[1772628499183,12.62647049,89.127,89.059,12.85714043]
[1772628499379,10.099,89.115,89.066,10.104]
[1772628499878,10.099,89.115,89.059,12.85714043]
[1772628500879,22.72547049,89.115,89.059,12.85714043]
[1772628501484,22.72547049,89.115,89.073,10.103]
[1772628501783,12.62647049,89.133,89.059,12.85714043]
[1772628502973,12.62647049,89.133,89.08,10.102]
[1772628502974,10.098,89.123,89.08,10.102]
[1772628503782,10.097,89.132,89.087,10.102]
[1772628506085,10.30658345,89.156,89.094,12.61802954]
[1772628506289,12.11206645,89.172,89.094,12.61802954]
[1772628506482,5.37589515,89.17,89.094,12.61802954]
[1772628506782,12.11206645,89.154,89.094,12.61802954]
[1772628507782,12.11206645,89.15,89.104,10.1]
[1772628508781,10.095,89.148,89.096,10.101]
[1772628508986,12.11206645,89.147,89.096,10.101]
[1772628509484,12.11206645,89.147,89.096,22.71902954]
[1772628509687,12.11206645,89.147,89.103,10.1]
[1772628510382,12.11206645,89.147,89.096,12.61802954]
[1772628510383,12.11206645,89.146,89.096,12.61802954]
[1772628510589,12.11206645,89.146,89.095,10.101]
[1772628510780,12.11206645,89.146,89.08,12.61802954]
[1772628510981,12.11206645,89.146,89.065,12.61802954]
[1772628511185,12.11206645,89.132,89.065,12.61802954]
[1772628511885,10.098,89.118,89.076,10.103]
[1772628512287,22.20906645,89.126,89.076,10.103]
[1772628513190,12.11206645,89.125,89.084,10.102]
[1772628513385,12.11206645,89.14,89.08,12.61802954]
[1772628513788,10.096,89.139,89.08,12.61802954]
[1772628514382,10.097,89.13,89.082,10.102]
[1772628515994,10.097,89.127,89.082,10.102]
[1772628516194,22.20906645,89.127,89.082,10.102]
[1772628516886,12.11206645,89.119,89.075,10.103]
[1772628517091,12.11206645,89.119,89.036,13.84842706]
[1772628517387,12.11206645,89.099,89.033,12.61802954]
[1772628517696,10.30658345,89.112,89.018,12.61802954]
[1772628517697,12.11206645,89.076,89.018,12.61802954]
[1772628518084,12.11206645,89.076,89.035,10.108]
[1772628518485,12.11206645,89.076,89.018,12.61802954]
[1772628519387,12.11206645,89.073,89.027,10.108]
[1772628519591,12.11206645,89.073,89.018,12.61802954]
[1772628520894,12.11206645,89.07,89.018,22.72702954]
[1772628521083,12.11206645,89.07,88.998,12.61802954]
[1772628522493,12.11206645,89.057,89.009,10.111]
[1772628523494,10.105,89.054,89.009,10.111]
[1772628523686,22.21706645,89.054,89.009,10.111]
[1772628524294,12.11206645,89.043,88.983,12.61802954]
[1772628525087,12.11206645,89.042,88.984,10.113]
[1772628525982,12.11206645,89.042,88.991,10.112]
[1772628526186,12.11206645,89.042,88.992,12.61802954]
[1772628526386,12.11206645,89.059,88.992,12.61802954]
[1772628526587,12.11206645,89.059,89.007,22.72902954]
[1772628526891,12.11206645,89.059,89.008,12.61802954]
[1772628528492,12.11206645,89.059,89.013,10.11]
[1772628529593,12.11206645,89.059,89.018,10.109]
[1772628532397,12.11206645,89.059,89.01,10.11]
[1772628532897,12.02860051,89.049,88.961,11.85504368]
[1772628534399,12.02860051,89.046,89.001,10.111]
[1772628535807,12.02860051,89.046,88.949,20.235]
[1772628535808,12.02860051,89.046,88.994,11.85504368]
[1772628536006,79.0,89.045,88.994,11.85504368]
[1772628537507,91.02860051,89.045,88.996,10.112]
[1772628538002,91.02860051,89.045,88.994,11.85504368]
[1772628538408,79.0,89.045,88.994,11.85504368]
[1772628538602,12.02860051,89.062,88.994,11.85504368]
[1772628539406,12.02860051,89.062,89.022,10.109]
[1772628541712,12.02860051,89.077,89.035,10.107]
[1772628541901,12.02860051,89.077,89.022,11.85504368]
[1772628543510,10.103,89.076,89.034,10.108]
[1772628548217,12.02860051,89.077,89.04,10.107]
[1772628548710,10.102,89.081,89.04,21.96204368]
[1772628548912,12.02860051,89.091,89.049,11.85504368]
[1772628549116,12.02860051,89.104,89.049,11.85504368]
[1772628549317,12.02860051,89.119,89.049,11.85504368]
[1772628549512,12.02860051,89.119,89.082,10.102]
[1772628549907,79.0,89.159,89.082,10.102]
[1772628549908,12.02860051,89.137,89.082,11.85504368]
[1772628550411,10.096,89.136,89.082,11.85504368]
[1772628550610,12.02860051,89.135,89.082,11.85504368]
[1772628550807,12.02860051,89.135,89.041,11.85504368]
[1772628551011,12.02860051,89.135,89.073,11.85504368]
[1772628552618,12.02860051,89.133,89.085,10.102]
[1772628554008,12.02860051,89.13,89.077,10.103]
[1772628554416,15.73993538,89.19,89.077,10.103]
[1772628554417,12.02860051,89.145,89.077,11.85504368]
[1772628554817,22.12360051,89.145,89.099,10.1]
[1772628555319,10.095,89.142,89.093,11.85504368]
[1772628555720,12.02860051,89.141,89.078,11.85504368]
[1772628557514,12.02860051,89.135,89.083,10.102]
[1772628560222,11.78778074,89.131,89.083,10.102]
[1772628560928,10.097,89.13,89.083,21.82499246]
[1772628561125,11.78778074,89.129,89.075,10.103]
[1772628561325,11.78778074,89.119,89.069,11.72299246]
[1772628561825,21.88578074,89.119,89.069,11.72299246]
[1772628562026,11.78778074,89.118,89.069,11.72299246]
[1772628562223,79.0,89.128,89.069,11.72299246]
[1772628562627,11.78778074,89.132,89.086,10.102]
[1772628563830,10.097,89.13,89.086,10.102]
[1772628565822,10.097,89.13,89.086,21.97394011]
[1772628566029,10.097,89.13,89.089,10.101]
[1772628566231,10.097,89.128,89.087,11.87194011]
[1772628566528,2.15009852,89.12,89.088,10.102]
[1772628567729,2.15009852,89.11,89.08,10.102]
[1772628568832,2.15009852,89.1,89.071,10.103]
[1772628569234,10.30658345,89.166,89.059,11.87194011]
[1772628569235,2.15009852,89.09,89.059,11.87194011]
[1772628569435,2.15009852,89.08,89.048,10.106]
[1772628570433,10.101,89.09,89.048,10.106]
[1772628570737,11.54581894,89.095,89.055,10.105]
[1772628570935,11.54581894,89.095,89.044,11.87194011]
[1772628571936,11.54581894,89.087,89.041,10.107]
[1772628573230,11.54581894,89.087,89.042,11.87194011]
[1772628573434,11.54581894,89.087,89.051,10.106]
[1772628574246,21.64481894,89.108,89.052,11.87194011]
[1772628574439,11.54581894,89.108,89.052,11.87194011]
[1772628575242,11.54581894,89.108,89.052,21.97794011]
[1772628575243,10.101,89.093,89.052,21.97794011]
[1772628576733,10.1,89.102,89.058,11.87194011]
[1772628577238,79.0,89.107,89.062,10.104]
[1772628577845,11.54581894,89.124,89.071,11.87194011]
[1772628578344,11.54581894,89.124,89.08,10.102]
[1772628578746,11.54581894,89.149,89.08,11.87194011]
[1772628578945,11.54581894,89.147,89.08,11.87194011]
[1772628580043,11.54581894,89.133,89.087,10.102]
[1772628580646,10.096,89.138,89.091,10.101]
[1772628581747,21.64181894,89.138,89.091,10.101]
[1772628582142,21.64181894,89.138,89.095,10.101]
[1772628582938,10.097,89.131,89.092,11.87194011]
[1772628583145,11.54581894,89.13,89.078,11.87194011]
[1772628584344,11.54581894,89.12,89.062,11.87194011]
[1772628585546,11.54581894,89.12,89.078,21.97494011]
[1772628585746,79.0,89.147,89.079,11.87194011]
[1772628585949,90.54581894,89.149,89.079,11.87194011]
[1772628587148,90.54581894,89.149,89.103,11.87194011]
[1772628587347,79.0,89.149,89.103,11.87194011]
[1772628587551,79.0,89.149,89.04,5.38056193]
[1772628587552,40.79223122,89.212,89.154,10.094]
[1772628587754,40.79223122,89.212,89.12,5.38056193]
[1772628588651,156.804,89.281,89.09,20.87605312]
[1772628588652,40.79184211,89.209,89.091,13.91667432]
[1772628588856,40.79184211,89.189,89.09,5.38056193]
[1772628589854,40.79184211,89.189,89.07,5.38056193]
[1772628590153,40.20419232,89.169,89.07,5.38056193]
[1772628590456,40.20419232,89.169,89.104,10.1]
[1772628590655,40.20419232,89.169,89.052,13.91667432]
[1772628590857,40.20419232,89.169,89.053,13.91667432]
[1772628591657,40.20419232,89.169,89.052,13.91667432]
[1772628591856,40.20419232,89.169,89.05,5.38056193]
[1772628592554,40.24162084,89.205,89.12,5.38056193]
[1772628592961,40.24162084,89.205,89.1,5.38056193]
[1772628594057,40.24162084,89.205,89.106,157.111]
[1772628594262,40.24162084,89.205,89.1,5.38056193]
[1772628594965,40.24162084,89.205,89.12,5.38056193]
[1772628595261,40.63854263,89.236,89.168,10.092]
[1772628595464,40.63854263,89.236,89.12,5.38056193]
[1772628595765,40.63854263,89.217,89.145,10.095]
[1772628596453,40.63854263,89.213,89.145,10.095]
[1772628596655,40.63854263,89.199,89.145,10.095]
[1772628597758,40.63854263,89.199,89.092,13.91667432]
[1772628597956,40.65795663,89.179,89.077,13.91667432]
[1772628598162,40.65795663,89.179,89.077,157.16]
[1772628598364,40.65795663,89.179,89.077,20.206]
[1772628599063,40.65795663,89.179,89.09,5.38056193]
[1772628599657,10.089,89.199,89.09,5.38056193]
[1772628599857,40.67700675,89.233,89.14,5.38056193]
[1772628600255,40.67700675,89.229,89.124,20.195]
[1772628600765,40.67700675,89.229,89.174,10.092]
[1772628602064,40.65853383,89.216,89.153,10.094]
[1772628602365,5.38056193,89.25,89.153,10.094]
[1772628602366,40.65853383,89.209,89.153,10.094]
[1772628603358,5.38056193,89.19,89.132,10.097]
[1772628603556,40.72652763,89.189,89.096,20.202]
[1772628604960,40.72652763,89.189,89.148,10.095]
[1772628605163,40.70369967,89.21,89.12,5.38056193]
[1772628605366,40.70369967,89.21,89.1,5.38056193]
[1772628606066,40.70369967,89.208,89.155,10.094]
[1772628606262,40.70369967,89.208,89.111,20.198]
[1772628606456,40.70369967,89.199,89.111,20.198]
[1772628607461,50.79269967,89.199,89.145,10.095]
[1772628609167,40.70369967,89.199,89.113,20.198]
[1772628609568,40.70369967,89.199,89.097,275.46404728]
[1772628610173,40.70369967,89.199,89.1,5.38056193]
[1772628610869,40.70369967,89.199,89.12,5.38056193]
[1772628611672,40.70361448,89.216,89.12,5.38056193]
[1772628611862,40.70361448,89.216,89.177,10.091]
[1772628612063,1.95142193,89.255,89.122,20.196]
[1772628612064,40.70361448,89.234,89.122,20.196]
[1772628612263,40.70361448,89.254,89.16,5.38056193]
[1772628612468,156.711,89.334,89.119,13.91667432]
[1772628612469,40.70361448,89.249,89.119,13.91667432]
[1772628612667,40.70361448,89.229,89.122,157.082]
[1772628612870,40.70361448,89.229,89.11,20.199]
[1772628613071,40.70361448,89.229,89.12,5.38056193]
[1772628613467,1.9512961,89.274,89.12,5.38056193]
[1772628613468,40.69568216,89.227,89.154,10.094]
[1772628613669,40.69568216,89.227,89.12,5.38056193]
[1772628614177,40.69568216,89.227,89.163,10.093]
[1772628614879,40.69568216,89.227,89.173,10.092]
[1772628615074,40.71367532,89.265,89.161,157.014]
[1772628615278,40.71367532,89.265,89.18,5.38056193]
[1772628615584,40.71367532,89.265,89.16,5.38056193]
[1772628615778,40.71367532,89.265,89.201,10.089]
[1772628616177,40.71367532,89.265,89.16,5.38056193]
[1772628616484,40.71367532,89.261,89.16,5.38056193]
[1772628617180,40.71367532,89.261,89.197,10.089]
[1772628617384,40.71367532,89.261,89.16,5.38056193]
[1772628617680,40.71367532,89.261,89.161,157.014]
[1772628617878,40.71367532,89.261,89.16,5.38056193]
[1772628618082,40.71367532,89.261,89.153,157.027]
[1772628618279,40.71367532,89.261,89.221,10.086]
[1772628618584,40.71367532,89.261,89.16,5.38056193]
[1772628618978,40.71367532,89.261,89.197,10.089]
[1772628619376,40.71367532,89.261,89.164,157.008]
[1772628619683,40.71367532,89.261,89.161,20.187]
[1772628619880,298.0,89.32,89.18,5.38056193]
[1772628620077,20.142,89.362,89.18,5.38056193]